bitfinex/quotes_SOLUSD_20240713
["timestamp","ask_amount","ask_price","bid_price","bid_amount"]
[1720853120494,11.6,139.59,139.54,11.6]
[1720853120673,20.0,139.58,139.54,11.6]
[1720853121299,20.0,139.58,139.53,11.6]
[1720853121300,31.6,139.58,139.53,11.6]
[1720853123899,20.0,139.58,139.53,11.6]
[1720853124191,31.6,139.58,139.53,11.6]
[1720853124394,11.6,139.57,139.5,20.0]
[1720853124596,11.6,139.57,139.51,11.6]
[1720853124889,11.6,139.56,139.51,11.6]
[1720853125909,11.6,139.56,139.5,20.0]
[1720853126122,11.6,139.56,139.51,11.6]
[1720853126425,11.6,139.55,139.5,31.6]
[1720853126797,11.6,139.56,139.51,11.6]
[1720853127409,11.6,139.55,139.5,11.6]
[1720853128289,11.6,139.54,139.49,11.6]
[1720853129522,11.6,139.53,139.45,22.0166]
[1720853129692,11.6,139.53,139.48,11.6]
[1720853130813,11.6,139.53,139.45,22.0166]
[1720853131012,11.6,139.53,139.47,11.6]
[1720853131191,21.6,139.53,139.45,22.0166]
[1720853131396,56.6,139.52,139.46,11.6]
[1720853131989,45.0,139.52,139.47,11.6]
[1720853132186,45.0,139.52,139.48,11.6]
[1720853133103,45.0,139.52,139.47,11.6]
[1720853133299,56.6,139.52,139.47,11.6]
[1720853133721,11.6,139.51,139.44,0.6127599]
[1720853134017,11.6,139.51,139.46,11.6]
[1720853134392,11.6,139.51,139.44,0.6127599]
[1720853134595,11.6,139.51,139.46,11.6]
[1720853135307,56.6,139.52,139.46,11.6]
[1720853136218,45.0,139.52,139.47,11.6]
[1720853136401,56.6,139.52,139.47,11.6]
[1720853137424,11.6,139.5,139.45,11.6]
[1720853138014,38.0912,139.51,139.46,11.6]
[1720853138325,45.0,139.5,139.44,2.0468234]
[1720853138532,16.4912,139.51,139.46,11.6]
[1720853138714,16.4912,139.51,139.44,0.6127599]
[1720853138715,21.6,139.48,139.44,0.6127599]
[1720853138897,10.0,139.48,139.44,0.6127599]
[1720853139221,56.6,139.47,139.44,0.6127599]
[1720853139419,45.0,139.47,139.44,0.6127599]
[1720853139917,36.0001,139.5,139.45,11.6]
[1720853139918,47.6001,139.5,139.45,11.6]
[1720853140328,11.6,139.48,139.44,0.6127599]
[1720853142224,45.0,139.49,139.44,0.6127599]
[1720853142427,11.6,139.47,139.44,0.6127599]
[1720853143325,45.0,139.46,139.44,0.6127599]
[1720853144528,56.6,139.47,139.44,0.6127599]
[1720853145430,11.6,139.45,139.44,0.6127599]
[1720853145599,56.6,139.45,139.44,0.6127599]
[1720853146528,76.6,139.45,139.44,0.6127599]
[1720853152537,65.0,139.45,139.44,0.6127599]
[1720853152737,76.6,139.45,139.44,0.6127599]
[1720853156649,65.0,139.45,139.44,0.6127599]
[1720853156812,20.0,139.45,139.44,0.6127599]
[1720853157012,65.0,139.45,139.44,0.6127599]
[1720853159212,76.6,139.45,139.44,0.6127599]
[1720853162429,76.6,139.45,139.37,20.0]
[1720853162742,11.6,139.42,139.36,22.7298]
[1720853163035,11.6,139.42,139.37,11.6]
[1720853163234,21.6,139.43,139.37,11.6]
[1720853163448,45.0,139.42,139.37,11.6]
[1720853164141,11.6,139.44,139.39,11.6]
[1720853164323,45.0,139.43,139.39,11.6]
[1720853165043,10.0,139.4,139.29,22.9550885]
[1720853165353,11.6,139.38,139.33,11.6]
[1720853165920,56.6,139.39,139.34,11.6]
[1720853166221,11.6,139.4,139.35,11.6]
[1720853166427,20.0,139.39,139.35,11.6]
[1720853166647,11.6,139.41,139.34,15.9536]
[1720853166947,76.6,139.4,139.35,11.6]
[1720853170029,76.6,139.4,139.34,15.9536]
[1720853170225,76.6,139.4,139.34,27.5536]
[1720853170428,76.6,139.4,139.35,11.6]
[1720853171128,65.0,139.4,139.35,11.6]
[1720853171328,11.6,139.41,139.36,11.6]
[1720853171528,21.6,139.42,139.37,11.6]
[1720853171755,65.0,139.41,139.37,11.6]
[1720853172251,65.0,139.41,139.36,11.6]
[1720853172656,76.6,139.41,139.36,11.6]
[1720853173144,11.6,139.4,139.35,11.6]
[1720853174628,45.0,139.39,139.34,33.6775]
[1720853175348,11.6,139.4,139.35,11.6]
[1720853177158,31.6,139.41,139.36,11.6]
[1720853177530,31.6,139.41,139.35,11.6]
[1720853177857,11.6,139.4,139.35,11.6]
[1720853178253,20.0,139.41,139.34,33.6775]
[1720853178437,11.6,139.39,139.34,33.6775]
[1720853178756,56.6,139.4,139.35,11.6]
[1720853180537,11.6,139.37,139.32,11.6]
[1720853181048,11.6,139.38,139.33,11.6]
[1720853181259,10.0,139.39,139.32,11.6]
[1720853181260,56.6,139.37,139.32,11.6]
[1720853181446,56.6,139.37,139.29,22.9550885]
[1720853181447,11.6,139.33,139.29,0.8775885]
[1720853181630,10.0,139.35,139.29,0.8775885]
[1720853181836,65.0,139.37,139.31,11.6]
[1720853182261,11.6,139.36,139.31,11.6]
[1720853182463,11.6,139.36,139.3,11.6]
[1720853183146,11.6,139.35,139.3,11.6]
[1720853183352,20.0,139.37,139.33,11.6]
[1720853183548,11.6,139.38,139.33,11.6]
[1720853184631,45.0,139.37,139.33,11.6]
[1720853184932,56.6,139.37,139.32,11.6]
[1720853187935,45.0,139.37,139.32,11.6]
[1720853188237,45.0,139.37,139.33,11.6]
[1720853188596,33.88698708,139.44,139.34,21.43538005]
[1720853188860,16.1728,139.46,139.4,11.6]
[1720853189229,11.6,139.45,139.4,11.6]
[1720853189759,21.6,139.44,139.39,11.6]
[1720853189948,41.6,139.44,139.35,21.8332]
[1720853190149,11.6,139.43,139.38,11.6]
[1720853191162,21.6,139.44,139.38,11.6]
[1720853191471,45.0,139.43,139.36,1.43477201]
[1720853191666,45.0,139.43,139.39,11.6]
[1720853192160,45.0,139.43,139.38,11.6]
[1720853192340,45.0,139.43,139.39,11.6]
[1720853193660,30.0,139.46,139.39,11.6]
[1720853193867,11.6,139.45,139.39,11.6]
[1720853194956,45.0,139.44,139.39,11.6]
[1720853195869,45.0,139.44,139.36,1.43463245]
[1720853196169,16.398,139.47,139.36,1.43463245]
[1720853196170,21.6,139.48,139.42,11.6]
[1720853196340,10.0,139.5,139.43,11.6]
[1720853196548,10.0,139.5,139.44,11.6]
[1720853196746,11.6,139.49,139.44,11.6]
[1720853196957,10.0,139.5,139.46,11.6]
[1720853197575,10.0,139.53,139.46,11.6]
[1720853197753,11.6,139.52,139.47,11.6]
[1720853197956,21.6,139.53,139.48,11.6]
[1720853198269,26.398,139.55,139.48,11.6]
[1720853198453,11.6,139.53,139.48,11.6]
[1720853198652,11.6,139.52,139.47,11.6]
[1720853198964,20.0,139.51,139.47,11.6]
[1720853199148,31.6,139.51,139.46,11.6]
[1720853199549,31.6,139.51,139.44,21.8332]
[1720853199865,31.6,139.51,139.46,11.6]
[1720853200053,56.6,139.5,139.44,21.8332]
[1720853200269,11.6,139.49,139.44,33.4332]
[1720853200473,56.6,139.5,139.44,33.4332]
[1720853201175,56.6,139.5,139.45,11.6]
[1720853204180,11.6,139.49,139.37,22.5979]
[1720853204372,11.6,139.49,139.44,11.6]
[1720853205502,45.0,139.5,139.44,11.6]
[1720853205799,11.6,139.49,139.44,11.6]
[1720853205984,56.6,139.5,139.45,11.6]
[1720853206876,56.6,139.5,139.37,29.7879]
[1720853206877,56.6,139.5,139.37,22.5979]
[1720853207067,11.6,139.49,139.44,11.6]
[1720853208609,11.6,139.49,139.38,20.0]
[1720853208610,21.6,139.49,139.38,20.0]
[1720853208904,56.6,139.48,139.43,11.6]
[1720853211986,45.0,139.48,139.44,11.6]
[1720853212292,11.6,139.5,139.44,11.6]
[1720853212482,45.0,139.49,139.44,11.6]
[1720853212682,66.6,139.49,139.44,11.6]
[1720853213095,11.6,139.48,139.43,11.6]
[1720853213297,45.0,139.47,139.42,11.6]
[1720853213501,45.0,139.47,139.43,11.6]
[1720853215889,11.6,139.48,139.44,11.6]
[1720853216113,11.6,139.5,139.44,11.6]
[1720853216287,45.0,139.49,139.44,11.6]
[1720853216489,45.0,139.5,139.44,11.6]
[1720853216812,11.6,139.49,139.44,11.6]
[1720853217107,45.0,139.48,139.44,11.6]
[1720853217410,45.0,139.48,139.45,11.6]
[1720853217610,45.0,139.49,139.45,11.6]
[1720853217783,45.0,139.49,139.46,11.6]
[1720853217989,45.0,139.5,139.46,11.6]
[1720853218996,45.0,139.5,139.45,11.6]
[1720853219189,56.6,139.5,139.42,22.5979]
[1720853219394,56.6,139.5,139.45,11.6]
[1720853220007,56.6,139.5,139.44,11.6]
[1720853220205,11.6,139.49,139.44,11.6]
[1720853220387,45.0,139.48,139.44,11.6]
[1720853221005,56.6,139.48,139.43,11.6]
[1720853221514,45.0,139.48,139.44,11.6]
[1720853221698,11.6,139.49,139.44,11.6]
[1720853223814,21.6,139.49,139.42,22.5979]
[1720853223999,45.0,139.48,139.43,11.6]
[1720853224206,45.0,139.48,139.44,11.6]
[1720853224411,56.6,139.48,139.43,11.6]
[1720853224996,45.0,139.48,139.43,11.6]
[1720853225197,45.0,139.48,139.44,11.6]
[1720853226916,45.0,139.48,139.43,11.6]
[1720853229200,45.0,139.48,139.44,11.6]
[1720853229900,45.0,139.48,139.42,22.5979]
[1720853230103,45.0,139.48,139.44,11.6]
[1720853230507,11.6,139.49,139.44,11.6]
[1720853230708,11.6,139.5,139.44,11.6]
[1720853231006,45.0,139.49,139.44,11.6]
[1720853231189,45.0,139.49,139.43,1.43422162]
[1720853231190,45.0,139.49,139.45,11.6]
[1720853234620,45.0,139.49,139.44,11.6]
[1720853238418,56.6,139.5,139.44,11.6]
[1720853238727,10.0,139.49,139.44,11.6]
[1720853238909,45.0,139.48,139.44,11.6]
[1720853242127,45.0,139.49,139.44,11.6]
[1720853242428,56.6,139.49,139.43,11.6]
[1720853242628,56.6,139.49,139.43,13.03424385]
[1720853242931,45.0,139.49,139.44,11.6]
[1720853247327,55.0,139.49,139.44,11.6]
[1720853250130,10.0,139.47,139.41,11.6]
[1720853250331,45.0,139.46,139.36,21.8487]
[1720853250507,46.8171,139.45,139.4,11.6]
[1720853250835,11.6,139.44,139.39,11.6]
[1720853252331,46.8171,139.45,139.4,11.6]
[1720853257212,11.6,139.41,139.33,6.1233]
[1720853257513,31.6,139.4,139.35,11.6]
[1720853257709,31.6,139.4,139.34,11.6]
[1720853257905,31.6,139.4,139.35,11.6]
[1720853258104,31.6,139.4,139.33,6.1233]
[1720853258339,31.6,139.4,139.34,11.6]
[1720853258917,11.6,139.39,139.34,11.6]
[1720853259816,31.6,139.4,139.34,11.6]
[1720853260718,31.6,139.4,139.33,6.1233]
[1720853260916,31.6,139.4,139.34,11.6]
[1720853261548,45.0,139.39,139.33,6.1233]
[1720853261835,11.6,139.38,139.33,11.6]
[1720853262041,11.6,139.38,139.32,11.6]
[1720853264023,11.6,139.38,139.33,11.6]
[1720853267442,70.2171,139.39,139.33,11.6]
[1720853267632,70.2171,139.39,139.29,7.0008885]
[1720853267633,11.6,139.38,139.29,7.0008885]
[1720853267943,45.0,139.37,139.33,11.6]
[1720853268323,56.6,139.37,139.32,11.6]
[1720853269018,56.6,139.37,139.3,21.43543521]
[1720853269227,56.6,139.37,139.32,11.6]
[1720853269933,56.6,139.37,139.3,21.43543521]
[1720853270137,56.6,139.37,139.32,11.6]
[1720853270945,45.0,139.37,139.33,11.6]
[1720853271323,11.6,139.38,139.33,11.6]
[1720853271647,26.8171,139.39,139.34,11.6]
[1720853273242,15.2171,139.39,139.35,11.6]
[1720853277619,20.0,139.4,139.36,13.03505452]
[1720853277952,20.0,139.41,139.37,11.6]
[1720853278330,20.0,139.42,139.37,11.6]
[1720853278848,31.6,139.42,139.37,11.6]
[1720853281751,31.6,139.42,139.36,11.6]
[1720853281947,11.6,139.41,139.36,11.6]
[1720853282959,21.6,139.41,139.34,6.0706]
[1720853283137,45.0,139.4,139.36,11.6]
[1720853283341,21.6,139.41,139.36,11.6]
[1720853283342,11.6,139.41,139.36,11.6]
[1720853285444,31.6,139.42,139.37,11.6]
[1720853285665,45.0,139.41,139.37,11.6]
[1720853285942,31.6,139.42,139.37,11.6]
[1720853286150,26.6008,139.43,139.38,11.6]
[1720853286363,45.0,139.42,139.38,11.6]
[1720853287354,45.0,139.42,139.37,11.6]
[1720853289685,56.6,139.42,139.36,11.6]
[1720853291375,56.6,139.42,139.35,1.43487553]
[1720853291592,56.6,139.42,139.36,11.6]
[1720853292375,11.6,139.41,139.36,11.6]
[1720853294666,56.6,139.42,139.36,13.03491837]
[1720853294976,56.6,139.42,139.36,1.43491837]
[1720853295174,56.6,139.42,139.37,11.6]
[1720853295377,45.0,139.42,139.37,11.6]
[1720853298683,26.6008,139.43,139.38,11.6]
[1720853299178,36.6008,139.43,139.37,11.6]
[1720853299381,45.0,139.42,139.37,11.6]
[1720853299570,26.6008,139.43,139.37,11.6]
[1720853299972,36.6008,139.43,139.37,11.6]
[1720853300172,11.6,139.41,139.36,11.6]
[1720853301274,11.6,139.41,139.35,31.6]
[1720853301889,11.6,139.39,139.32,15.0844]
[1720853302086,11.6,139.39,139.34,11.6]
[1720853302384,11.6,139.4,139.34,11.6]
[1720853302889,11.6,139.38,139.33,31.6]
[1720853303388,10.0,139.41,139.33,31.6]
[1720853303559,45.0,139.4,139.34,11.6]
[1720853304495,56.6,139.4,139.35,11.6]
[1720853304654,56.6,139.4,139.34,11.6]
[1720853305670,56.6,139.4,139.34,13.03515128]
[1720853306165,56.6,139.4,139.35,11.6]
[1720853306375,56.6,139.4,139.34,11.6]
[1720853306576,45.0,139.4,139.35,11.6]
[1720853309279,56.6,139.4,139.35,11.6]
[1720853310683,45.0,139.4,139.35,11.6]
[1720853311284,11.6,139.41,139.36,11.6]
[1720853311484,15.0008,139.43,139.38,11.6]
[1720853311775,15.0008,139.43,139.39,11.6]
[1720853315578,11.6,139.44,139.39,11.6]
[1720853315892,25.6953,139.47,139.39,11.6]
[1720853316077,11.6,139.45,139.4,11.6]
[1720853317888,28.5567377,139.47,139.4,11.6]
[1720853318196,11.6,139.45,139.4,11.6]
[1720853318995,65.0,139.46,139.4,11.6]
[1720853319195,11.6,139.45,139.4,11.6]
[1720853320491,11.6,139.45,139.35,6.593]
[1720853320492,56.6,139.44,139.39,11.6]
[1720853320666,56.6,139.44,139.38,11.6]
[1720853320863,11.6,139.43,139.38,11.6]
[1720853322273,11.6,139.43,139.35,6.593]
[1720853322473,11.6,139.43,139.38,11.6]
[1720853326402,45.0,139.44,139.38,11.6]
[1720853326582,56.6,139.44,139.39,11.6]
[1720853328893,56.6,139.44,139.37,1.43476806]
[1720853329095,56.6,139.44,139.39,11.6]
[1720853329301,56.6,139.44,139.38,11.6]
[1720853329481,11.6,139.43,139.38,11.6]
[1720853331985,56.6,139.44,139.39,11.6]
[1720853332723,56.6,139.44,139.37,1.43479186]
[1720853332889,56.6,139.44,139.39,11.6]
[1720853333089,56.6,139.44,139.38,11.6]
[1720853333405,11.6,139.43,139.38,11.6]
[1720853333604,11.6,139.43,139.36,20.0]
[1720853333779,11.6,139.42,139.37,11.6]
[1720853339512,11.6,139.42,139.35,20.0]
[1720853339809,11.6,139.42,139.37,11.6]
[1720853340308,37.1397,139.43,139.37,11.6]
[1720853341209,37.1397,139.43,139.38,11.6]
[1720853341909,37.1397,139.43,139.37,11.6]
[1720853342305,11.6,139.42,139.35,20.0]
[1720853342486,11.6,139.42,139.37,11.6]
[1720853343189,11.6,139.42,139.36,11.6]
[1720853343499,25.5397,139.43,139.37,11.6]
[1720853343709,37.1397,139.43,139.37,11.6]
[1720853345311,15.5397,139.43,139.38,13.0348333]
[1720853345510,27.1397,139.43,139.38,11.6]
[1720853346014,15.5397,139.43,139.38,11.6]
[1720853347010,27.1397,139.43,139.37,11.6]
[1720853347193,11.6,139.42,139.37,11.6]
[1720853347816,27.1397,139.43,139.37,11.6]
[1720853348005,27.1397,139.43,139.38,11.6]
[1720853348194,15.5397,139.43,139.38,11.6]
[1720853352314,15.5397,139.43,139.35,20.0]
[1720853352315,11.6,139.42,139.35,20.0]
[1720853352618,66.6,139.41,139.33,20.0]
[1720853352912,66.6,139.41,139.35,11.6]
[1720853353103,66.6,139.41,139.36,11.6]
[1720853353507,56.6,139.41,139.36,11.6]
[1720853353705,45.0,139.41,139.36,11.6]
[1720853354013,56.6,139.42,139.37,11.6]
[1720853354221,45.0,139.42,139.38,11.6]
[1720853358820,56.6,139.42,139.37,11.6]
[1720853360499,45.0,139.42,139.37,11.6]
[1720853362109,56.6,139.42,139.37,11.6]
[1720853369333,45.0,139.42,139.38,11.6]
[1720853373330,45.0,139.42,139.37,11.6]
[1720853374011,56.6,139.42,139.37,11.6]
[1720853374221,11.6,139.4,139.35,11.6]
[1720853374503,11.6,139.4,139.32,6.3398]
[1720853374707,11.6,139.4,139.35,11.6]
[1720853374927,11.6,139.4,139.34,11.6]
[1720853376236,11.6,139.4,139.32,6.3398]
[1720853376412,45.0,139.39,139.35,11.6]
[1720853380733,55.0,139.39,139.34,11.6]
[1720853380948,66.6,139.39,139.34,11.6]
[1720853381115,11.6,139.35,139.29,0.8775885]
[1720853381315,11.6,139.35,139.3,11.6]
[1720853383921,11.6,139.36,139.31,11.6]
[1720853384146,45.0,139.35,139.31,11.6]
[1720853385323,56.6,139.36,139.31,11.6]
[1720853385922,56.6,139.36,139.29,2.31321886]
[1720853386123,56.6,139.36,139.29,0.8775885]
[1720853386344,11.6,139.35,139.3,11.6]
[1720853387530,11.6,139.34,139.29,12.4775885]
[1720853388733,11.6,139.34,139.29,0.8775885]
[1720853388941,11.6,139.34,139.29,12.4775885]
[1720853390456,11.6,139.35,139.3,11.6]
[1720853391267,11.6,139.35,139.29,0.8775885]
[1720853391268,21.6,139.35,139.29,0.8775885]
[1720853391553,45.0,139.34,139.3,11.6]
[1720853391762,45.0,139.34,139.31,11.6]
[1720853394045,45.0,139.34,139.3,11.6]
[1720853395349,16.5129,139.33,139.3,11.6]
[1720853395653,56.6,139.32,139.29,0.8775885]
[1720853396058,11.6,139.31,139.29,0.8775885]
[1720853396240,56.6,139.32,139.29,0.8775885]
[1720853398853,45.0,139.32,139.29,0.8775885]
[1720853399052,45.0,139.31,139.29,0.8775885]
[1720853399558,26.5129,139.33,139.29,0.8775885]
[1720853399559,11.6,139.3,139.29,0.8775885]
[1720853399743,56.6,139.3,139.29,0.8775885]
[1720853400463,45.0,139.3,139.29,0.8775885]
[1720853401254,56.6,139.3,139.29,0.8775885]
[1720853404048,45.0,139.3,139.29,0.8775885]
[1720853404257,56.6,139.3,139.29,0.8775885]
[1720853404760,45.0,139.3,139.29,0.8775885]
[1720853404967,56.6,139.3,139.29,0.8775885]
[1720853410769,45.0,139.3,139.29,0.8775885]
[1720853410978,56.6,139.3,139.29,0.8775885]
[1720853412772,45.0,139.3,139.29,0.8775885]
[1720853413074,56.6,139.3,139.29,0.8775885]
[1720853415079,26.5129,139.33,139.29,0.8775885]
[1720853415375,20.0,139.32,139.29,0.8775885]
[1720853415557,11.6,139.32,139.29,0.8775885]
[1720853416975,45.0,139.31,139.29,0.8775885]
[1720853417170,66.6,139.31,139.29,0.8775885]
[1720853417357,55.0,139.31,139.29,0.8775885]
[1720853417562,66.6,139.31,139.29,0.8775885]
[1720853418281,56.6,139.31,139.29,0.8775885]
[1720853418485,45.0,139.31,139.29,0.8775885]
[1720853420456,66.6,139.31,139.29,0.8775885]
[1720853420790,56.6,139.31,139.29,0.8775885]
[1720853421454,45.0,139.31,139.29,0.8775885]
[1720853422483,56.6,139.31,139.29,0.8775885]
[1720853423483,66.6,139.31,139.29,0.8775885]
[1720853424352,11.6,139.3,139.29,0.8775885]
[1720853424556,56.6,139.3,139.29,0.8775885]
[1720853436069,76.6,139.3,139.29,0.8775885]
[1720853438196,76.6,139.3,139.24,6.2142]
[1720853438197,10.0,139.29,139.24,6.2142]
[1720853438397,45.0,139.28,139.24,6.2142]
[1720853438996,11.6,139.25,139.2,18.2284]
[1720853439165,11.6,139.25,139.2,6.6284]
[1720853439495,45.0,139.24,139.2,18.2284]
[1720853442779,45.0,139.24,139.21,11.6]
[1720853443094,10.0,139.3,139.21,1.43665275]
[1720853443297,56.6,139.29,139.23,11.6]
[1720853443598,11.6,139.29,139.23,11.6]
[1720853443795,10.0,139.3,139.23,11.6]
[1720853444098,11.6,139.29,139.24,11.6]
[1720853444296,10.0,139.28,139.24,11.6]
[1720853444505,10.0,139.28,139.23,11.6]
[1720853445179,45.0,139.27,139.23,11.6]
[1720853451389,45.0,139.27,139.24,11.6]
[1720853451728,45.0,139.28,139.24,11.6]
[1720853452277,56.6,139.29,139.24,11.6]
[1720853452706,10.0,139.3,139.25,11.6]
[1720853452907,21.6,139.3,139.25,11.6]
[1720853453392,10.0,139.3,139.25,11.6]
[1720853454004,45.0,139.29,139.25,11.6]
[1720853456286,45.0,139.29,139.26,11.6]
[1720853460297,10.0,139.3,139.26,11.6]
[1720853461499,10.0,139.32,139.27,11.6]
[1720853461698,10.0,139.32,139.28,11.6]
[1720853462092,21.6,139.32,139.27,11.6]
[1720853463008,45.0,139.31,139.27,11.6]
[1720853464011,2.91908368,139.33,139.27,11.6]
[1720853464221,56.6,139.33,139.28,11.6]
[1720853464421,20.0,139.32,139.28,11.6]
[1720853468239,20.0,139.32,139.25,6.3311]
[1720853468533,45.0,139.31,139.27,11.6]
[1720853470912,20.0,139.32,139.29,11.6]
[1720853471111,20.0,139.33,139.29,11.6]
[1720853472517,21.56118384,139.36,139.29,28.1239]
[1720853472730,56.6,139.35,139.3,11.6]
[1720853473427,45.0,139.35,139.3,11.6]
[1720853473742,11.6,139.35,139.29,16.5239]
[1720853473911,11.6,139.35,139.3,11.6]
[1720853475042,45.0,139.34,139.3,11.6]
[1720853475236,55.0,139.34,139.29,16.5239]
[1720853475534,10.0,139.32,139.26,16.5239]
[1720853475843,56.6,139.31,139.26,16.5239]
[1720853476045,45.0,139.31,139.26,16.5239]
[1720853476214,11.6,139.3,139.26,16.5239]
[1720853476937,56.6,139.31,139.26,16.5239]
[1720853477440,56.6,139.31,139.26,28.1239]
[1720853479314,45.0,139.31,139.27,11.6]
[1720853480034,56.6,139.31,139.26,28.1239]
[1720853480220,59.55282023,139.31,139.26,28.1239]
[1720853482525,21.6,139.3,139.25,17.9311]
[1720853482730,45.0,139.29,139.25,17.9311]
[1720853483334,45.0,139.29,139.25,6.3311]
[1720853483633,45.0,139.29,139.25,17.9311]
[1720853485341,56.6,139.29,139.23,16.5239]
[1720853485646,56.6,139.29,139.24,11.6]
[1720853486332,11.6,139.28,139.23,16.5239]
[1720853486531,45.0,139.27,139.23,28.1239]
[1720853488741,45.0,139.27,139.23,11.6]
[1720853496356,45.0,139.27,139.24,11.6]
[1720853497539,45.0,139.27,139.23,11.6]
[1720853499056,45.0,139.27,139.22,11.6]
[1720853499235,56.6,139.27,139.22,11.6]
[1720853499554,21.6,139.26,139.2,16.1259]
[1720853499755,45.0,139.25,139.21,11.6]
[1720853499938,45.0,139.25,139.19,6.3118]
[1720853500251,11.6,139.24,139.19,17.9118]
[1720853500455,11.6,139.24,139.19,11.6]
[1720853500874,11.6,139.24,139.18,11.6]
[1720853501175,11.6,139.24,139.19,11.6]
[1720853501676,56.6,139.25,139.2,11.6]
[1720853502260,10.0,139.28,139.21,11.6]
[1720853502445,21.6,139.26,139.21,11.6]
[1720853502752,21.6,139.26,139.2,11.6]
[1720853502753,31.6,139.25,139.2,11.6]
[1720853503380,31.6,139.25,139.16,22.4377]
[1720853503673,45.0,139.24,139.2,11.6]
[1720853505273,45.0,139.24,139.21,11.6]
[1720853506079,45.0,139.24,139.17,1.43667911]
[1720853506252,45.0,139.24,139.2,11.6]
[1720853509783,11.6,139.26,139.21,11.6]
[1720853509961,11.6,139.27,139.22,11.6]
[1720853510265,45.0,139.26,139.22,11.6]
[1720853511551,45.0,139.26,139.21,11.6]
[1720853511955,45.0,139.26,139.22,11.6]
[1720853515983,56.6,139.27,139.22,11.6]
[1720853516887,56.6,139.27,139.21,11.6]
[1720853519677,45.0,139.27,139.16,22.4377]
[1720853519869,56.6,139.27,139.21,11.6]
[1720853520266,56.6,139.27,139.22,11.6]
[1720853521466,45.0,139.27,139.23,1.43645162]
[1720853521675,2.95282023,139.31,139.25,11.6]
[1720853521977,11.6,139.3,139.25,11.6]
[1720853522182,20.0,139.29,139.26,11.6]
[1720853522384,31.6,139.31,139.26,11.6]
[1720853522585,21.6,139.3,139.24,1.43631612]
[1720853522762,20.0,139.29,139.25,11.6]